bitfinex/quotes_ETHUSD_20230119
["timestamp","ask_amount","ask_price","bid_price","bid_amount"]
[1674148874760,6.56256,1539.3,1538.9,6.49796]
[1674148874975,6.49544,1539.6,1539.3,1.13741911]
[1674148875190,0.066,1539.6,1539.3,1.13741911]
[1674148875406,6.56112,1539.7,1539.3,1.13741911]
[1674148876226,0.066,1539.7,1539.6,1.502]
[1674148876437,0.20187678,1539.9,1539.6,3.017]
[1674148876645,0.20187678,1539.9,1539.8,1.503]
[1674148876646,0.86682526,1539.9,1539.8,1.503]
[1674148878021,17.14641285,1539.9,1539.3,1.13741911]
[1674148878261,10.12074759,1539.6,1539.3,1.13741911]
[1674148878472,30.09477759,1539.5,1539.3,1.13741911]
[1674148878661,9.30122535,1539.4,1539.3,1.13741911]
[1674148878910,22.35928535,1539.4,1539.3,1.13741911]
[1674148879113,37.90451535,1539.4,1539.3,1.13741911]
[1674148879329,12.11945153,1539.3,1538.7,0.30307738]
[1674148879660,33.09967759,1539.2,1538.7,0.17707738]
[1674148879809,20.99343,1539.0,1538.7,0.17707738]
[1674148880017,4.73050893,1538.9,1538.7,0.17707738]
[1674148880292,6.49857,1538.8,1538.7,0.17707738]
[1674148880431,6.56457,1538.8,1538.7,0.17707738]
[1674148885190,0.066,1538.8,1538.7,0.17707738]
[1674148885402,8.00314134,1538.9,1538.7,1.69107738]
[1674148889216,8.00314134,1538.9,1538.7,1.52507738]
[1674148890284,6.56438,1538.9,1538.7,0.17707738]
[1674148891300,0.066,1538.9,1538.7,0.17707738]
[1674148891557,6.56379,1539.0,1538.7,0.17707738]
[1674148891747,0.066,1539.0,1538.9,1.348]
[1674148891955,6.56365,1539.1,1538.9,1.348]
[1674148892168,6.56365,1539.1,1538.8,1.348]
[1674148892169,3.29174759,1539.0,1538.8,1.348]
[1674148892356,12.99628,1538.9,1538.7,1.52507738]
[1674148892709,13.39145476,1538.9,1538.7,1.52507738]
[1674148893026,13.39145476,1538.9,1538.7,0.17707738]
[1674148893339,16.28888759,1538.8,1538.7,0.17707738]
[1674148893493,16.35488759,1538.8,1538.7,0.17707738]
[1674148893701,18.67310783,1538.8,1538.7,0.17707738]
[1674148894689,17.99593806,1538.8,1538.7,0.17707738]
[1674148897397,29.88733806,1538.8,1538.7,0.17707738]
[1674148898297,34.82414445,1538.8,1538.3,0.10869129]
[1674148898485,20.84449,1538.5,1538.3,0.04269129]
[1674148898673,19.77986759,1538.4,1538.3,0.04269129]
[1674148898885,21.34586759,1538.4,1538.3,0.04269129]
[1674148899098,24.03511194,1538.4,1538.3,0.04269129]
[1674148902572,33.37567497,1538.4,1538.3,0.04269129]
[1674148903387,34.71767497,1538.4,1538.3,0.04269129]
[1674148904660,33.77911194,1538.4,1538.3,0.04269129]
[1674148905769,32.43611194,1538.4,1538.3,0.04269129]
[1674148906138,37.3619083,1538.4,1538.3,0.04269129]
[1674148906389,38.01884073,1538.4,1538.3,0.04269129]
[1674148906787,34.43104437,1538.4,1538.3,0.04269129]
[1674148907417,32.93104437,1538.4,1538.3,0.04269129]
[1674148907652,24.10711194,1538.4,1538.3,0.04269129]
[1674148908490,30.93611194,1538.4,1538.3,0.04269129]
[1674148908703,34.5239083,1538.4,1538.3,0.04269129]
[1674148909033,32.28411194,1538.4,1538.3,0.04269129]
[1674148910166,32.94104437,1538.4,1538.3,0.04269129]
[1674148911832,32.28411194,1538.4,1538.3,0.04269129]
[1674148913393,22.45511194,1538.4,1538.3,0.04269129]
[1674148913603,19.04751194,1538.4,1538.3,0.04269129]
[1674148914656,22.04751194,1538.4,1538.3,0.04269129]
[1674148920376,23.38551194,1538.4,1538.3,0.04269129]
[1674148921338,23.38551194,1538.4,1538.3,0.03884767]
[1674148924248,22.04751194,1538.4,1538.3,0.03884767]
[1674148926489,30.45151194,1538.4,1538.3,7.67e-06]
[1674148926703,8.329,1538.3,1538.1,0.04663006]
[1674148926853,39.84274759,1538.2,1538.1,0.04663006]
[1674148927065,47.45243941,1538.2,1538.0,0.05218666]
[1674148927362,12.96874759,1538.1,1538.0,0.05218666]
[1674148927505,20.19204443,1538.1,1538.0,0.05218666]
[1674148927723,33.19508443,1538.1,1538.0,0.05218666]
[1674148928905,31.84708443,1538.1,1538.0,0.05218666]
[1674148929871,31.84708443,1538.1,1537.9,0.05218666]
[1674148930040,8.52944759,1538.0,1537.9,0.05218666]
[1674148930220,25.22715497,1538.0,1537.9,0.05218666]
[1674148930432,25.8840874,1538.0,1537.9,0.05218666]
[1674148930674,40.19388376,1538.0,1537.9,6.66e-06]
[1674148930887,40.19388376,1538.0,1537.7,0.05218666]
[1674148930888,6.829,1537.8,1537.7,0.05218666]
[1674148931097,1.5,1537.7,1537.5,0.08802149]
[1674148931311,37.65130759,1537.6,1537.5,0.08802149]
[1674148931637,38.60424002,1537.6,1537.5,0.08802149]
[1674148931848,43.9360414,1537.6,1537.5,0.08802149]
[1674148932357,35.5910414,1537.6,1537.5,0.08802149]
[1674148933432,32.37230759,1537.6,1537.5,0.08802149]
[1674148933792,31.16754898,1537.6,1537.5,0.08802149]
[1674148934651,30.48984768,1537.6,1537.5,0.08802149]
[1674148935067,29.08056,1537.6,1537.5,0.08802149]
[1674148938339,19.57692,1537.6,1537.5,0.08802149]
[1674148938777,6.56964,1537.6,1537.5,1.76382364]
[1674148941264,0.066,1537.6,1537.5,3.28382364]
[1674148941457,6.56936,1537.7,1537.5,3.28382364]
[1674148941672,6.56936,1537.7,1537.6,1.509]
[1674148942302,6.56936,1537.7,1537.6,1.83678236]
[1674148942955,0.066,1537.7,1537.6,1.83678236]
[1674148943143,6.56893,1537.8,1537.6,1.83678236]
[1674148943512,6.56893,1537.8,1537.7,1.52]
[1674148950710,6.56893,1537.8,1537.6,3.34778236]
[1674148951082,0.066,1537.8,1537.7,1.84477824]
[1674148951246,6.50238,1537.9,1537.7,1.84477824]
[1674148951247,0.066,1537.9,1537.7,1.84477824]
[1674148951457,6.568,1538.0,1537.8,1.509]
[1674148953702,6.568,1538.0,1537.9,1.52]
[1674148956381,6.56589517,1538.0,1537.9,1.52]
[1674148964496,6.56589517,1538.0,1537.8,3.015]
[1674148964958,6.56589517,1538.0,1537.8,1.515]
[1674148965724,6.56589517,1538.0,1537.8,3.015]
[1674148965928,6.56589517,1538.0,1537.8,1.515]
[1674148966471,6.56589517,1538.0,1537.8,3.015]
[1674148966664,6.56589517,1538.0,1537.8,1.515]
[1674148966979,6.56589517,1538.0,1537.8,3.015]
[1674148967762,6.56589517,1538.0,1537.8,1.515]
[1674148968026,0.066,1538.0,1537.8,1.515]
[1674148968246,6.56774,1538.1,1537.8,1.515]
[1674148968558,13.06956,1538.1,1537.8,1.515]
[1674148970555,15.026655,1538.1,1537.8,1.515]
[1674148971797,15.026655,1538.1,1537.8,3.015]
[1674148972014,13.06956,1538.1,1537.8,3.015]
[1674148972806,6.56774,1538.1,1537.8,3.015]
[1674148972924,6.56774,1538.1,1537.9,0.00516304]
[1674148973143,13.0695,1538.1,1537.7,20.6506]
[1674148973465,1.30695,1538.0,1537.7,20.6506]
[1674148973694,7.80916,1538.0,1537.7,20.6506]
[1674148973912,7.87516,1538.0,1537.7,20.6506]
[1674148975445,14.37737,1538.0,1537.7,20.6506]
[1674148975659,14.37737,1538.0,1537.7,10.4216]
[1674148975861,1.437737,1537.9,1537.7,10.4216]
[1674148976126,13.00558,1537.8,1537.7,10.4216]
[1674148976337,13.07158,1537.8,1537.7,0.066]
[1674148976569,13.07158,1537.8,1537.5,9.06192149]
[1674148976913,13.55938,1537.8,1537.5,9.06192149]
[1674148977127,1.355938,1537.7,1537.5,9.06192149]
[1674148977456,0.982,1537.6,1537.5,0.15402149]
[1674148977788,13.31157685,1537.6,1537.5,0.08802149]
[1674148978145,15.50091381,1537.6,1537.5,0.08802149]
[1674148978487,15.98871381,1537.6,1537.5,0.08802149]
[1674148980399,18.98871381,1537.6,1537.5,0.08802149]
[1674148985085,22.2804614,1537.6,1537.5,0.08802149]
[1674148988034,18.98871381,1537.6,1537.5,0.08802149]
[1674148988206,18.50091381,1537.6,1537.5,0.08802149]
[1674148993441,13.49727381,1537.6,1537.5,0.08802149]
[1674148993774,11.99727381,1537.6,1537.5,0.08802149]
[1674148996746,0.37029685,1537.6,1537.5,1.02102149]
[1674148996951,0.30429685,1537.6,1537.5,1.02102149]
[1674148997371,0.30429685,1537.6,1537.5,0.08802149]
[1674148999953,0.507,1537.6,1537.5,0.08802149]
[1674149003268,13.30238759,1537.6,1537.5,0.08802149]
[1674149003434,24.62311403,1537.6,1537.5,0.08802149]
[1674149004380,26.13611403,1537.6,1537.5,0.08802149]
[1674149005262,10.11583403,1537.6,1537.5,0.08802149]
[1674149005661,6.82408644,1537.6,1537.5,0.08802149]
[1674149005838,4.0608,1537.6,1537.5,0.08802149]
[1674149006045,3.9948,1537.6,1537.5,0.08802149]
[1674149006252,3.507,1537.6,1537.5,0.08802149]
[1674149006621,0.507,1537.6,1537.5,1.04802149]
[1674149008289,0.507,1537.6,1537.5,0.08802149]
[1674149009633,0.507,1537.6,1537.5,1.04802149]
[1674149009853,0.507,1537.6,1537.5,8.70586539]
[1674149010069,0.507,1537.6,1537.5,8.77186539]
[1674149010699,0.497,1537.6,1537.5,8.77186539]
[1674149010903,0.497,1537.6,1537.5,10.27186539]
[1674149011528,0.497,1537.6,1537.5,8.77186539]
[1674149013259,0.497,1537.6,1537.5,10.27186539]
[1674149013407,0.497,1537.6,1537.5,8.77186539]
[1674149013614,0.497,1537.6,1537.5,10.27186539]
[1674149013829,0.497,1537.6,1537.5,8.77186539]
[1674149014087,0.497,1537.6,1537.5,6.65808149]
[1674149018107,0.24400001,1537.6,1537.5,6.65808149]
[1674149019854,1e-08,1537.6,1537.5,8.17808149]
[1674149020202,1e-08,1537.6,1537.5,9.67808149]
[1674149020754,1e-08,1537.6,1537.5,18.64022302]
[1674149021033,1e-08,1537.6,1537.5,19.76961391]
[1674149021401,1e-08,1537.6,1537.5,20.4426098]
[1674149021878,1e-08,1537.6,1537.5,21.4594672]
[1674149022186,1e-08,1537.6,1537.5,22.36676359]
[1674149022342,1e-08,1537.6,1537.5,20.6726098]
[1674149023747,1e-08,1537.6,1537.5,19.99961391]
[1674149023913,1e-08,1537.6,1537.5,21.6937677]
[1674149024121,1e-08,1537.6,1537.5,19.99961391]
[1674149024807,1e-08,1537.6,1537.5,21.6937677]
[1674149025020,1e-08,1537.6,1537.5,19.99961391]
[1674149027537,1e-08,1537.6,1537.5,17.35022302]
[1674149027862,1e-08,1537.6,1537.5,17.11822302]
[1674149028021,1e-08,1537.6,1537.5,17.12022302]
[1674149028439,1e-08,1537.6,1537.5,14.68214149]
[1674149028749,1e-08,1537.6,1537.5,13.16214149]
[1674149029383,1e-08,1537.6,1537.5,6.65808149]
[1674149029608,1e-08,1537.6,1537.5,0.15402149]
[1674149029822,1e-08,1537.6,1537.5,0.08802149]
[1674149030033,6.50364001,1537.6,1537.5,0.08802149]
[1674149030237,19.72149942,1537.6,1537.5,0.08802149]
[1674149030596,22.72149942,1537.6,1537.5,0.08802149]
[1674149031017,23.40107756,1537.6,1537.5,0.08802149]
[1674149031375,24.91407756,1537.6,1537.5,0.08802149]
[1674149031647,25.2568274,1537.6,1537.5,0.08802149]
[1674149032846,25.93777152,1537.6,1537.5,0.08802149]
[1674149033957,24.91544354,1537.6,1537.5,0.08802149]
[1674149034794,25.93765101,1537.6,1537.5,0.08802149]
[1674149036022,24.91532303,1537.6,1537.5,0.08802149]
[1674149036557,23.41532303,1537.6,1537.5,0.08802149]
[1674149036729,21.22149942,1537.6,1537.5,0.08802149]
[1674149036938,14.71785942,1537.6,1537.5,0.08802149]
[1674149037424,11.42611183,1537.6,1537.5,0.08802149]
[1674149038057,4.92247183,1537.6,1537.5,0.08802149]
[1674149038215,3.48780001,1537.6,1537.5,0.08802149]
[1674149040450,3.00000001,1537.6,1537.5,1.04802149]
[1674149040662,3.00000001,1537.6,1537.5,1.04550385]
[1674149040933,3.00000001,1537.6,1537.5,0.08550385]
[1674149041086,5.50573001,1537.6,1537.5,0.08550385]
[1674149041418,4.07173001,1537.6,1537.5,0.08550385]
[1674149041584,4.00573001,1537.6,1537.5,0.08550385]
[1674149043374,3.00000001,1537.6,1537.5,0.08550385]
[1674149044534,3.48780001,1537.6,1537.5,0.08550385]
[1674149044769,3.00000001,1537.6,1537.5,0.08550385]
[1674149045403,3.00200001,1537.6,1537.5,0.08550385]
[1674149045565,3.00000001,1537.6,1537.5,0.08550385]
[1674149046509,7.9478326,1537.6,1537.5,0.08550385]
[1674149046719,22.52673857,1537.6,1537.5,0.08550385]
[1674149052137,24.22989016,1537.6,1537.5,0.08550385]
[1674149052290,36.91725189,1537.6,1537.5,0.08550385]
[1674149052507,38.61160178,1537.6,1537.5,0.08550385]
[1674149052711,36.91725189,1537.6,1537.5,0.08550385]
[1674149052976,38.61160178,1537.6,1537.5,0.08550385]
[1674149053502,38.96396642,1537.6,1537.0,0.10194585]
[1674149053693,1.51,1537.2,1537.0,0.10194585]
[1674149053903,6.50575,1537.1,1537.0,0.10194585]
[1674149054111,6.57175,1537.1,1537.0,0.10194585]
[1674149059767,19.87724759,1537.1,1537.0,0.10194585]
[1674149059977,25.68195027,1537.1,1537.0,0.10194585]
[1674149060224,38.23403929,1537.1,1537.0,0.00364585]
[1674149060539,14.51236,1537.0,1536.9,0.11070882]
[1674149060694,24.53419259,1537.0,1536.9,0.11070882]
[1674149062646,23.03419259,1537.0,1536.9,0.11070882]
[1674149068536,31.38319259,1537.0,1536.9,0.11070882]
[1674149070076,35.59728161,1537.0,1536.9,0.00070882]
[1674149070399,35.59728161,1537.0,1536.7,0.09510519]
[1674149070400,8.329,1536.9,1536.7,0.09510519]
[1674149070622,35.83792759,1536.8,1536.7,0.09510519]
[1674149070945,35.90392759,1536.8,1536.7,0.09510519]
[1674149071307,35.90147774,1536.8,1536.7,0.09510519]
[1674149073650,46.92108709,1536.8,1536.7,0.09510519]
[1674149073867,50.02722179,1536.8,1536.7,0.09510519]
[1674149074468,46.49354487,1536.8,1536.7,0.09510519]
[1674149074888,50.02722179,1536.8,1536.7,0.09510519]
[1674149075237,46.49354487,1536.8,1536.7,0.09510519]
[1674149075666,44.97354487,1536.8,1536.7,0.09510519]
[1674149076208,48.50722179,1536.8,1536.7,0.09510519]
[1674149076519,44.97354487,1536.8,1536.7,0.09510519]
[1674149076890,37.48761244,1536.8,1536.7,0.09510519]
[1674149078561,32.48951244,1536.8,1536.7,0.09510519]
[1674149079954,35.48951244,1536.8,1536.7,0.09510519]
[1674149081688,29.38337774,1536.8,1536.7,1.05510519]
[1674149081900,5.89497686,1536.8,1536.7,1.05510519]
[1674149084591,12.40199686,1536.8,1536.7,1.05510519]
[1674149085849,12.40199686,1536.8,1536.7,1.02810519]
[1674149086657,12.40199686,1536.8,1536.7,0.09510519]
[1674149086830,14.29287155,1536.8,1536.7,0.09510519]
[1674149087039,27.09163914,1536.8,1536.7,0.09510519]
[1674149091444,27.09163914,1536.8,1536.3,21.27880519]
[1674149091650,6.29174759,1536.7,1536.3,21.28080519]
[1674149091867,19.52385,1536.6,1536.3,19.12680519]
[1674149092228,6.57395,1536.6,1536.4,1.517]
[1674149092383,6.57395,1536.6,1536.4,3.017]
[1674149092970,6.57395,1536.6,1536.4,1.517]
[1674149097870,6.57395,1536.6,1536.3,22.79009913]
[1674149099058,13.0819,1536.6,1536.3,22.79009913]
[1674149100580,13.0819,1536.6,1536.3,21.27009913]
[1674149100808,13.0819,1536.6,1536.3,21.94309502]
[1674149101015,13.0819,1536.6,1536.3,21.27009913]
[1674149101324,13.0819,1536.6,1536.4,1.1302029]
[1674149101494,13.0819,1536.6,1536.3,21.94309502]
[1674149102338,13.0819,1536.6,1536.3,21.27009913]
[1674149103020,13.0819,1536.6,1536.3,21.26809913]
[1674149103226,13.0819,1536.6,1536.3,21.27009913]
[1674149103687,13.0819,1536.6,1536.3,19.12680519]
[1674149105185,16.37364759,1536.6,1536.3,10.4102]
[1674149105355,19.58985,1536.6,1536.3,10.4102]
[1674149111063,19.52616,1536.4,1536.3,0.066]
[1674149111273,22.88390759,1536.4,1536.2,0.11313836]
[1674149113001,3.29174759,1536.3,1536.2,0.11004862]
[1674149113247,18.65465588,1536.3,1536.2,0.11004862]
[1674149113470,18.23245588,1536.3,1536.2,0.11004862]
[1674149116547,23.09668361,1536.3,1536.2,0.11004862]
[1674149116720,27.00565798,1536.3,1536.2,0.11004862]
[1674149116892,24.80656268,1536.3,1536.2,0.11004862]
[1674149117550,24.57668361,1536.3,1536.2,0.11004862]
[1674149117961,23.89758831,1536.3,1536.2,0.11004862]
[1674149118571,21.72065588,1536.3,1536.2,0.11004862]
[1674149124049,15.42890829,1536.3,1536.2,1.07004862]
[1674149124230,12.40602684,1536.3,1536.2,1.07004862]
[1674149124372,5.89688684,1536.3,1536.2,1.07004862]
[1674149125023,4.69116494,1536.3,1536.2,1.07004862]
[1674149125218,4.62516494,1536.3,1536.2,1.07004862]
[1674149127903,6.57472,1536.4,1536.2,1.18836732]
[1674149128132,0.066,1536.4,1536.3,4.532]
[1674149128259,13.08125,1536.7,1536.2,0.29436732]
[1674149128635,13.01587,1536.6,1536.2,0.22836732]
[1674149128823,13.08187,1536.6,1536.2,0.22836732]
[1674149129041,13.08187,1536.6,1536.2,0.11004862]
[1674149130711,13.08187,1536.6,1536.2,1.62504862]
[1674149132704,0.26601311,1536.5,1536.2,1.62504862]
[1674149133053,6.77442311,1536.5,1536.2,1.62504862]
[1674149133240,6.84042311,1536.5,1536.2,2.02276691]
[1674149134385,0.33201311,1536.5,1536.3,2.63621233]
[1674149134656,0.26601311,1536.5,1536.4,2.64710652]
[1674149134966,0.26601311,1536.5,1536.4,3.78063076]
[1674149135175,0.26601311,1536.5,1536.4,5.28063076]
[1674149135389,0.26601311,1536.5,1536.4,11.85535076]
[1674149135906,0.26601311,1536.5,1536.4,10.35535076]
[1674149136076,0.26355035,1536.5,1536.4,10.35535076]
[1674149136651,0.26355035,1536.5,1536.4,9.22524424]
[1674149137486,0.26355035,1536.5,1536.4,11.85535712]
[1674149137646,0.26355035,1536.5,1536.4,13.55052644]
[1674149137862,0.26355035,1536.5,1536.4,20.05924644]
[1674149138056,0.26355035,1536.5,1536.4,20.28924644]
[1674149139596,0.26355035,1536.5,1536.4,17.09407712]
[1674149140406,3.43155035,1536.5,1536.4,17.09407712]
[1674149141350,3.43155035,1536.5,1536.4,10.58536126]
[1674149141560,3.43155035,1536.5,1536.4,9.22324424]
[1674149141772,3.43155035,1536.5,1536.4,9.22524424]
[1674149142822,3.43155035,1536.5,1536.4,2.71652424]
[1674149142995,3.43155035,1536.5,1536.3,20.5407]
[1674149143460,3.43155035,1536.5,1536.3,1.583]
[1674149143675,3.43155035,1536.5,1536.3,1.517]
[1674149144635,3.43155035,1536.5,1536.2,0.17604862]
[1674149144636,3.29174759,1536.4,1536.2,0.17604862]
[1674149144841,3.29174759,1536.4,1536.2,0.11004862]
[1674149144842,19.85659476,1536.3,1536.2,0.11004862]
[1674149145091,20.41079476,1536.3,1536.2,0.11004862]
[1674149148995,6.57514,1536.3,1536.2,2.00304862]
[1674149149144,5.36941614,1536.3,1536.2,2.00304862]
[1674149149358,0.066,1536.3,1536.2,2.00304862]
[1674149149604,0.5542,1536.4,1536.2,3.51204862]
[1674149149775,10.49404035,1536.5,1536.3,2.09330486]
[1674149149988,3.49755035,1536.5,1536.3,2.09330486]
[1674149150193,3.43155035,1536.5,1536.4,2.10233049]
[1674149153820,3.43155035,1536.5,1536.4,3.62233049]
[1674149154733,3.43155035,1536.5,1536.4,5.12233049]
[1674149154945,3.43155035,1536.5,1536.4,5.18833049]
[1674149155195,3.43155035,1536.5,1536.4,3.68833049]
[1674149155435,3.43155035,1536.5,1536.4,3.62233049]
[1674149160768,3.43155035,1536.5,1536.4,2.10233049]
[1674149163204,3.43155035,1536.5,1536.4,3.60233049]
[1674149163632,3.43155035,1536.5,1536.4,2.10233049]
[1674149164360,2.75344187,1536.5,1536.4,2.10233049]
[1674149164574,2.75344187,1536.5,1536.4,3.23249097]
[1674149165166,2.75344187,1536.5,1536.4,2.10233049]
[1674149165378,2.75344187,1536.5,1536.4,3.23250496]
[1674149167734,2.75344187,1536.5,1536.4,2.10233049]
[1674149169226,1.54786866,1536.5,1536.4,2.10233049]
[1674149169856,1.54786866,1536.5,1536.4,3.23251037]
[1674149172530,1.54786866,1536.5,1536.4,2.10233049]
[1674149173410,1.54786866,1536.5,1536.4,4.73251766]
[1674149173996,1.54786866,1536.5,1536.4,3.23251766]
[1674149174942,1.54786866,1536.5,1536.4,2.10233049]
[1674149175419,1.54786866,1536.5,1536.4,4.73251651]
[1674149175991,1.54786866,1536.5,1536.4,5.4055124]
[1674149176235,1.54786866,1536.5,1536.4,3.9715124]
[1674149176467,1.54786866,1536.5,1536.4,5.4055124]
[1674149176680,1.54786866,1536.5,1536.4,3.29851651]
[1674149177003,1.54786866,1536.5,1536.4,4.9223698]
[1674149177306,1.54786866,1536.5,1536.4,3.9055124]
[1674149179101,1.54786866,1536.5,1536.4,3.23251651]
[1674149179628,1.54786866,1536.5,1536.4,13.4312324]
[1674149179929,1.54786866,1536.5,1536.4,14.5140898]
[1674149180511,1.79100001,1536.5,1536.4,23.13655086]
[1674149180719,0.066,1536.8,1536.5,0.62500192]
[1674149180930,0.48,1536.8,1536.5,13.9182178]
[1674149181198,0.48,1536.8,1536.6,1.13018602]
[1674149182190,0.48,1536.8,1536.5,17.04079051]
[1674149182463,0.48,1536.8,1536.5,15.52079051]
[1674149182857,0.48,1536.8,1536.6,1.55207905]
[1674149183073,0.48,1536.8,1536.5,15.52079051]
[1674149183725,6.98702,1536.8,1536.5,0.066]
[1674149183888,6.98702,1536.8,1536.3,7.25424195]
[1674149183889,13.56005,1536.8,1536.3,7.25424195]
[1674149184253,15.08005,1536.8,1536.3,1.7616134]
[1674149184563,5.016105,1536.7,1536.2,27.11049397]
[1674149184737,18.097525,1536.7,1536.3,1.13022777]
[1674149185095,1.5,1536.6,1536.3,1.13022777]
[1674149185412,8.4676525,1536.6,1536.2,27.11049397]
[1674149185722,6.5739,1536.6,1536.3,1.13025393]
[1674149185938,8.3239,1536.6,1536.3,1.13025393]
[1674149186112,6.8239,1536.6,1536.3,1.13025393]
[1674149186326,8.3239,1536.6,1536.3,1.13025393]
[1674149187290,6.8239,1536.6,1536.3,1.13025393]
[1674149187932,6.8239,1536.6,1536.3,1.80967588]
[1674149188101,6.8239,1536.6,1536.2,28.12735137]
[1674149188309,8.3239,1536.6,1536.3,1.13027699]
[1674149188545,6.8239,1536.6,1536.3,1.13027699]
[1674149189153,6.8239,1536.6,1536.3,1.80969894]
[1674149191606,6.8239,1536.6,1536.3,1.13027699]
[1674149191927,6.8239,1536.6,1536.2,19.92232797]
[1674149191928,10.03381203,1536.6,1536.2,19.92232797]
[1674149192171,19.55771203,1536.6,1536.3,1.13026219]
[1674149192310,1.5,1536.4,1536.2,9.92974862]
[1674149192692,9.9842012,1536.5,1536.2,0.17604862]
[1674149193003,10.7292965,1536.5,1536.2,0.11004862]
[1674149193324,8.02914,1536.3,1536.2,0.11004862]
[1674149193495,8.08314,1536.3,1536.2,0.11004862]
[1674149193708,8.09514,1536.3,1536.2,0.11004862]
[1674149194088,6.57514,1536.3,1536.2,0.11004862]
[1674149199181,7.02514,1536.3,1536.2,0.11004862]
[1674149202184,6.50897,1536.4,1536.3,0.68974582]
[1674149202531,0.066,1536.4,1536.3,0.68974582]
[1674149202746,30.424,1536.5,1536.3,0.68974582]
[1674149202919,11.17016,1536.5,1536.3,0.68974582]
[1674149204292,12.67016,1536.5,1536.3,0.68974582]
[1674149204765,11.17016,1536.5,1536.3,0.68974582]
[1674149205941,11.165171,1536.5,1536.3,0.68974582]
[1674149206437,17.673701,1536.5,1536.3,0.68974582]
[1674149209078,1.7673701,1536.4,1536.3,0.68974582]
[1674149209409,16.2918101,1536.4,1536.3,0.68974582]
[1674149209543,16.3578101,1536.4,1536.3,0.68974582]
[1674149211332,14.8508101,1536.4,1536.3,0.68974582]
[1674149215531,16.3608101,1536.4,1536.3,0.68974582]
[1674149220170,15.68258119,1536.4,1536.3,0.68974582]
[1674149220407,14.17258119,1536.4,1536.3,0.68974582]
[1674149220619,13.08344,1536.4,1536.3,0.68974582]
[1674149221546,6.57472,1536.4,1536.3,0.68974582]
[1674149229840,17.87518759,1536.4,1536.3,0.68974582]
[1674149230052,23.41580573,1536.4,1536.3,0.68974582]
[1674149230476,23.90400573,1536.4,1536.3,0.68974582]
[1674149230693,27.92602371,1536.4,1536.3,0.68974582]
[1674149230905,29.2868479,1536.4,1536.3,0.68974582]
[1674149231468,27.92602371,1536.4,1536.3,0.68974582]
[1674149233731,28.6086995,1536.4,1536.3,0.68974582]
[1674149234692,27.92602371,1536.4,1536.3,0.68974582]
[1674149234902,29.2868479,1536.4,1536.3,0.68974582]
[1674149236060,27.92602371,1536.4,1536.3,0.68974582]
[1674149236443,28.60843357,1536.4,1536.3,0.68974582]
[1674149238244,27.58781543,1536.4,1536.3,0.68974582]
[1674149239031,26.08781543,1536.4,1536.3,0.68974582]
[1674149239436,37.09522976,1536.4,1536.3,0.68974582]
[1674149239608,38.78957965,1536.4,1536.3,0.68974582]
[1674149239818,39.44651208,1536.4,1536.3,0.68974582]
[1674149240043,39.45042753,1536.4,1536.3,0.68974582]
[1674149240257,34.25607764,1536.4,1536.3,0.68974582]
[1674149240467,28.45029362,1536.4,1536.3,0.68974582]
[1674149240693,28.45027814,1536.4,1536.3,0.68974582]
[1674149241184,27.11071559,1536.4,1536.3,0.68974582]
[1674149242234,26.08751509,1536.4,1536.3,0.68974582]
[1674149245238,26.08751509,1536.4,1536.3,0.68587862]
[1674149246182,27.11071559,1536.4,1536.3,0.68587862]
[1674149246798,26.42860607,1536.4,1536.3,0.68587862]
[1674149247127,27.11068551,1536.4,1536.3,0.68587862]
[1674149248341,26.42860607,1536.4,1536.3,0.68587862]
[1674149248579,27.11071566,1536.4,1536.3,0.68587862]
[1674149248834,26.42860607,1536.4,1536.3,0.68587862]
[1674149249121,27.11071995,1536.4,1536.3,0.68587862]
[1674149251174,26.08751945,1536.4,1536.3,0.68587862]
[1674149253594,27.11071995,1536.4,1536.3,0.68587862]
[1674149255020,25.59071995,1536.4,1536.3,0.68587862]
[1674149255844,25.10251995,1536.4,1536.3,0.68587862]
[1674149256284,24.07931945,1536.4,1536.3,0.68587862]
[1674149256875,20.39720557,1536.4,1536.3,0.68587862]
[1674149257100,16.37518759,1536.4,1536.3,0.68587862]
[1674149258277,19.37518759,1536.4,1536.3,0.68587862]
[1674149261210,20.05730147,1536.4,1536.3,0.68587862]
[1674149261424,19.37518759,1536.4,1536.3,0.68587862]
[1674149264811,9.57472,1536.4,1536.3,0.68587862]
[1674149265119,6.57472,1536.4,1536.3,0.68587862]
[1674149266909,5.89649601,1536.4,1536.3,0.68587862]
[1674149267218,6.14649601,1536.4,1536.3,0.68587862]
[1674149268847,6.14649601,1536.4,1536.3,0.76547134]
[1674149268848,0.316,1536.4,1536.3,0.76547134]
[1674149269102,0.25,1536.4,1536.3,0.76547134]
[1674149275169,0.244,1536.5,1536.4,1.5]
[1674149275351,0.244,1536.5,1536.3,10.34561134]
[1674149275509,0.244,1536.5,1536.4,1.03456113]
[1674149276648,0.244,1536.5,1536.4,2.54956113]
[1674149283014,13.26058,1536.5,1536.3,9.0802]
[1674149283231,13.32658,1536.5,1536.3,0.066]
[1674149283438,13.32658,1536.5,1536.2,0.11004862]
[1674149284332,15.310067,1536.5,1536.2,0.11004862]
[1674149286740,18.60181459,1536.5,1536.2,0.11004862]
[1674149287424,6.50914,1536.3,1536.2,0.11004862]
[1674149287639,6.57514,1536.3,1536.2,0.11004862]
[1674149288207,13.08428,1536.3,1536.2,0.11004862]
[1674149288421,15.42160976,1536.3,1536.2,0.11004862]
[1674149290954,0.066,1536.3,1536.2,1.07004862]
[1674149291166,0.066,1536.4,1536.2,2.59004862]
[1674149291372,6.81829,1536.5,1536.2,2.59004862]
[1674149291627,6.81829,1536.5,1536.3,0.25900486]
[1674149293886,0.31,1536.5,1536.3,0.25900486]
[1674149294091,0.244,1536.5,1536.3,0.25900486]
[1674149294358,0.244,1536.5,1536.3,1.77900486]
[1674149294573,0.244,1536.5,1536.4,0.17790049]
[1674149300247,0.244,1536.5,1536.4,1.69790049]
[1674149302697,0.244,1536.5,1536.4,3.19790049]
[1674149303222,0.244,1536.5,1536.4,1.69790049]
[1674149303829,0.32200001,1536.5,1536.4,1.69790049]
[1674149304224,0.32200001,1536.5,1536.4,3.19790049]
[1674149305053,0.32200001,1536.5,1536.4,4.32809772]
[1674149306152,0.32200001,1536.5,1536.4,10.83681772]
[1674149306341,0.32200001,1536.5,1536.4,18.09095967]
[1674149306531,0.32200001,1536.5,1536.4,20.01631218]
[1674149306742,3.0,1536.8,1536.5,1.5]
[1674149306980,3.066,1536.9,1536.7,1.351]
[1674149307193,0.079,1536.8,1536.7,1.351]
[1674149310464,0.079,1536.8,1536.6,1.724]